[Event "FISCA Open 2022"]
[Site "Cap Aurora"]
[Date "2022.06.24"]
[Round "3.7"]
[White "Dobra, Costica"]
[Black "Girmacea, Bogdan"]
[Result "0-1"]
[ECO "A08"]
[WhiteElo "1837"]
[BlackElo "2133"]
[Annotator "NA RC"]
[PlyCount "108"]
[EventDate "2022.06.22"]
[EventType "swiss"]
[EventCountry "ROU"]
[SourceTitle "playchess.com"]
[Source "ChessBase"]
[SourceQuality "1"]
[TimeControl "5400+30"]

1. e4 {[%emt 0:00:11]} e6 {[%emt 0:00:06]} 2. d3 {[%emt 0:01:14]} d5 {[%emt 0:00:16]} 3. Nd2 {[%emt 0:00:10]} c5 {[%emt 0:00:16]} 4. Ngf3 {[%emt 0:00:22]} Nc6 {[%emt 0:00:50]} 5. g3 {[%emt 0:00:17]} Bd6 {[%emt 0:00:17]} 6. Bg2 {[%emt 0:00:29]} Nge7 {[%emt 0:00:17]} 7. O-O {[%emt 0:00:37]} O-O {[%emt 0:00:09]} 8. Re1 {[%emt 0:03:06]} Qc7 {[%emt 0:00:38]} 9. c3 {[%emt 0:01:32]} f6 {[%emt 0:06:10]} 10. a3 {[%emt 0:05:38]} a5 {[%emt 0:07:10]} 11. Nf1 {[%emt 0:04:13]} (11. exd5 $14 exd5 12. c4) 11... d4 {[%emt 0:02:54]} 12. Nh4 {[%emt 0:06:36]} (12. cxd4 $11 Nxd4 13. Nxd4 cxd4 14. Nd2) 12... e5 {[%emt 0:03:30]} 13. c4 $17 {[%emt 0:03:21]} (13. Qb3+ $15 Kh8 14. a4) 13... a4 {[%emt 0:09:48]} 14. g4 {[%emt 0:05:51]} g6 {[%emt 0:14:15]} 15. Ng3 {[%emt 0:04:08]} Nd8 {[%emt 0:04:41]} 16. Bh6 {[%emt 0:02:57]} Rf7 {[%emt 0:00:12]} 17. Bf3 {[%emt 0:09:52]} Ne6 {[%emt 0:10:27]} 18. Ng2 {[%emt 0:02:20]} Kh8 {[%emt 0:05:39]} 19. h4 {[%emt 0:02:54]} Bd7 {[%emt 0:02:13]} 20. Bd2 {[%emt 0:02:35]} Rb8 {[%emt 0:03:00]} 21. h5 {[%emt 0:02:43]} b5 {[%emt 0:01:39]} 22. b3 {[%emt 0:02:47]} bxc4 {[%emt 0:03:03]} 23. bxc4 {[%emt 0:00:56]} Rb3 {[%emt 0:00:32]} 24. Qc2 {[%emt 0:00:34]} Rf8 {[%emt 0:01:34]} 25. Reb1 {[%emt 0:00:31]} Rfb8 {[%emt 0:00:17]} 26. Ne2 {[%emt 0:00:33]} Qb6 {[%emt 0:03:15]} 27. Rxb3 {[%emt 0:01:49]} Qxb3 {[%emt 0:00:18]} 28. Qxb3 {[%emt 0:03:03]} Rxb3 {[%emt 0:00:11]} 29. Nc1 {[%emt 0:00:37]} Rb2 {[%emt 0:01:01]} 30. Ra2 {[%emt 0:03:14]} Rb1 {[%emt 0:01:05]} 31. Kh2 {[%emt 0:02:25]} Kg7 {[%emt 0:03:44]} 32. Bd1 {[%emt 0:03:24]} gxh5 {[%emt 0:01:36]} 33. gxh5 {[%emt 0:00:33]} f5 {[%emt 0:00:32]} 34. Bc2 {[%emt 0:03:49]} Rb8 {[%emt 0:00:29]} 35. exf5 {[%emt 0:02:59]} Nxf5 {[%emt 0:00:18]} 36. Ne2 {[%emt 0:01:01]} Kf6 {[%emt 0:04:03]} 37. Ng3 {[%emt 0:02:44]} Nxg3 {[%emt 0:00:56]} 38. fxg3 {[%emt 0:01:09]} Ng5 {[%emt 0:01:24]} 39. Bd1 {[%emt 0:01:09]} Bc6 {[%emt 0:01:24]} 40. Nh4 {[%emt 0:01:30]} Rb1 {[%emt 0:01:17]} 41. Bxg5+ {[%emt 0:01:16]} Kxg5 {[%emt 0:00:12]} 42. Nf3+ {[%emt 0:01:18]} Kh6 {[%emt 0:01:28]} 43. Be2 {[%emt 0:03:49]} e4 {[%emt 0:00:16]} 44. Nd2 {[%emt 0:01:48]} Rb8 {[%emt 0:04:00]} 45. Nxe4 {[%emt 0:01:39]} Bxe4 {[%emt 0:00:13]} 46. dxe4 {[%emt 0:00:15]} Rb3 {[%emt 0:00:19]} 47. Kg2 {[%emt 0:00:49]} Rxg3+ {[%emt 0:00:26]} 48. Kf2 {[%emt 0:00:17]} Rc3 {[%emt 0:01:00]} 49. Rb2 {[%emt 0:02:44]} Kg5 {[%emt 0:00:54]} 50. Rb6 {[%emt 0:00:50]} Be5 {[%emt 0:01:48]} 51. Rc6 {[%emt 0:01:00]} d3 {[%emt 0:00:12]} 52. Bd1 {[%emt 0:03:25]} Kf4 {[%emt 0:01:38]} 53. Ke1 {[%emt 0:01:22]} Rxc4 {[%emt 0:00:16]} 54. Kd2 {[%emt 0:00:16]} Kxe4 {[%emt 0:00:25]} 0-1

[Event "FISCA Open 2022"]
[Site "Cap Aurora"]
[Date "2022.06.24"]
[Round "3.8"]
[White "Breahna, Radu"]
[Black "Mitev, Mitko"]
[Result "1-0"]
[ECO "A25"]
[WhiteElo "2142"]
[BlackElo "1781"]
[Annotator "NA RC"]
[PlyCount "55"]
[EventDate "2022.06.22"]
[EventType "swiss"]
[EventCountry "ROU"]
[SourceTitle "playchess.com"]
[Source "ChessBase"]
[SourceQuality "1"]
[TimeControl "5400+30"]

1. c4 {[%emt 0:02:56]} e5 {[%emt 0:00:32]} 2. g3 {[%emt 0:00:19]} Nf6 {[%emt 0:02:44]} 3. Bg2 {[%emt 0:00:43]} Nc6 {[%emt 0:03:23]} 4. Nc3 {[%emt 0:01:38]} Bc5 {[%emt 0:01:41]} 5. a3 {[%emt 0:06:47]} a5 {[%emt 0:01:01]} 6. e3 {[%emt 0:00:33]} O-O {[%emt 0:00:50]} 7. Nge2 {[%emt 0:00:24]} Re8 {[%emt 0:01:29]} 8. O-O {[%emt 0:07:05]} d6 {[%emt 0:01:42]} 9. d4 {[%emt 0:06:38]} Bb6 {[%emt 0:03:16]} 10. h3 $11 {[%emt 0:09:04]} Ne7 {[%emt 0:17:36]} 11. c5 {[%emt 0:10:33]} Ba7 {[%emt 0:02:10]} 12. b4 {[%emt 0:15:19]} dxc5 {[%emt 0:18:42]} 13. dxe5 {[%emt 0:07:37]} Nd7 {[%emt 0:01:28]} 14. f4 {[%emt 0:11:27]} cxb4 {[%emt 0:04:21]} 15. axb4 {[%emt 0:00:19]} Nf5 {[%emt 0:01:56]} 16. Qd3 {[%emt 0:11:30]} Nf8 {[%emt 0:04:52]} 17. Qxd8 {[%emt 0:04:46]} Rxd8 {[%emt 0:00:09]} 18. Rxa5 {[%emt 0:01:03]} Bxe3+ {[%emt 0:02:03]} 19. Kh2 {[%emt 0:00:43]} Rxa5 20. bxa5 {[%emt 0:00:01]} Bxc1 {[%emt 0:01:20]} 21. Rxc1 {[%emt 0:00:07]} Ne3 {[%emt 0:03:18]} 22. Bf3 {[%emt 0:01:01]} Ne6 {[%emt 0:03:35]} 23. Nb5 {[%emt 0:00:44]} Rd2 {[%emt 0:16:59]} 24. Kg1 {[%emt 0:00:11]} b6 {[%emt 0:01:12]} 25. axb6 {[%emt 0:00:33]} c6 {[%emt 0:03:11]} 26. Nd6 {[%emt 0:00:51]} Ba6 {[%emt 0:01:45]} 27. b7 {[%emt 0:00:24]} Rb2 {[%emt 0:00:27]} 28. Rxc6 {[%emt 0:01:14]} 1-0

[Event "FISCA Open 2022"]
[Site "Cap Aurora"]
[Date "2022.06.24"]
[Round "3.9"]
[White "Spiridon, Mihai-Zoltan"]
[Black "Prisacaru, Stefan-Emilian"]
[Result "0-1"]
[ECO "D03"]
[WhiteElo "1678"]
[BlackElo "1937"]
[Annotator "NA RC"]
[PlyCount "58"]
[EventDate "2022.06.22"]
[EventType "swiss"]
[EventCountry "ROU"]
[SourceTitle "playchess.com"]
[Source "ChessBase"]
[SourceQuality "1"]
[TimeControl "5400+30"]

1. d4 {[%emt 0:07:08]} d5 {[%emt 0:00:05]} 2. Nf3 {[%emt 0:00:50]} Nf6 {[%emt 0:00:12]} 3. Bg5 {[%emt 0:01:25]} Ne4 {[%emt 0:00:18]} 4. e3 {[%emt 0:05:25]} Nxg5 {[%emt 0:13:42]} 5. Nxg5 {[%emt 0:00:11]} h6 {[%emt 0:01:34]} 6. Nf3 {[%emt 0:00:51]} ({Reject} 6. Qh5 g6 7. Qh4 e5 $15) 6... c5 {[%emt 0:00:20]} 7. Nc3 {[%emt 0:05:44]} Nc6 {[%emt 0:00:40]} 8. Be2 {[%emt 0:05:02]} Bf5 {[%emt 0:00:38]} (8... e6 $15) 9. O-O {[%emt 0:01:23]} (9. dxc5 $14 e6 10. Nd4) 9... e6 {[%emt 0:00:05]} 10. a3 {[%emt 0:01:21]} Bd6 {[%emt 0:00:54]} 11. Nb5 {[%emt 0:01:21]} Be7 {[%emt 0:01:16]} 12. dxc5 {[%emt 0:02:51]} Bxc5 {[%emt 0:00:07]} 13. Nbd4 {[%emt 0:00:07]} Bh7 {[%emt 0:00:29]} 14. Bb5 $11 {[%emt 0:03:55]} Qc7 {[%emt 0:01:29]} 15. Nxc6 {[%emt 0:02:51]} bxc6 {[%emt 0:00:04]} 16. Bd3 {[%emt 0:00:03]} f5 {[%emt 0:02:53]} 17. Nd4 {[%emt 0:01:51]} Qd6 {[%emt 0:00:36]} 18. Qh5+ {[%emt 0:01:59]} Ke7 {[%emt 0:00:57]} 19. Qh4+ {[%emt 0:07:04]} Kf7 {[%emt 0:00:14]} 20. f4 {[%emt 0:09:04]} Rhf8 {[%emt 0:02:07]} 21. g4 {[%emt 0:05:44]} Kg8 {[%emt 0:00:36]} 22. g5 {[%emt 0:00:05]} e5 {[%emt 0:01:58]} 23. fxe5 {[%emt 0:03:51]} Qxe5 {[%emt 0:00:04]} 24. Rae1 {[%emt 0:03:07]} hxg5 {[%emt 0:01:22]} 25. Qf2 {[%emt 0:00:37]} f4 {[%emt 0:03:49]} 26. Bxh7+ {[%emt 0:00:50]} Kxh7 {[%emt 0:00:06]} 27. Nf3 {[%emt 0:04:27]} fxe3 {[%emt 0:00:46]} 28. Qh4+ {[%emt 0:01:16]} gxh4 {[%emt 0:00:12]} 29. Nxe5 {[%emt 0:00:01]} e2+ {[%emt 0:00:13]} 0-1

[Event "FISCA Open 2022"]
[Site "Cap Aurora"]
[Date "2022.06.24"]
[Round "3.10"]
[White "Aldea, Maria-Antonia"]
[Black "Stegaroiu, Marcel-Florian"]
[Result "1/2-1/2"]
[ECO "A81"]
[WhiteElo "1655"]
[BlackElo "1917"]
[Annotator "NA RC"]
[PlyCount "62"]
[EventDate "2022.06.22"]
[EventType "swiss"]
[EventCountry "ROU"]
[SourceTitle "playchess.com"]
[Source "ChessBase"]
[SourceQuality "1"]
[TimeControl "5400+30"]

1. d4 {[%emt 0:00:08]} f5 {[%emt 0:01:18]} 2. Nf3 {[%emt 0:00:48]} Nf6 {[%emt 0:00:25]} 3. g3 {[%emt 1:31:04]} g6 {[%emt 0:00:14]} 4. Bg2 {[%emt 0:00:00]} Bg7 {[%emt 0:00:12]} 5. O-O {[%emt 0:00:00]} O-O {[%emt 0:00:08]} 6. b3 {[%emt 0:00:00]} c5 {[%emt 0:03:49]} 7. c4 {[%emt 0:00:00]} cxd4 {[%emt 0:00:25]} 8. Nxd4 {[%emt 0:00:00]} Nc6 {[%emt 0:00:35]} 9. Bb2 {[%emt 0:00:00]} a6 {[%emt 0:03:19]} 10. Nc2 {[%emt 0:00:00]} (10. Nc3 $16) 10... Qc7 {[%emt 0:00:51]} 11. Ne3 {[%emt 0:00:00]} e6 {[%emt 0:09:06]} 12. c5 {[%emt 0:00:00]} Rf7 {[%emt 0:07:51]} (12... Ng4 $14 13. Bxg7 Nxe3) 13. Nc4 {[%emt 0:00:00]} Ne8 {[%emt 0:04:13]} 14. Bxg7 {[%emt 0:05:30]} Rxg7 $18 {[%emt 0:00:20]} 15. Nba3 {[%emt 0:00:00]} Nb4 {[%emt 0:06:11]} 16. Qd4 {[%emt 0:00:00]} Nc6 {[%emt 0:00:31]} 17. Qd2 {[%emt 0:00:00]} Rb8 {[%emt 0:01:20]} 18. Rac1 {[%emt 0:00:00]} h5 {[%emt 0:07:21]} 19. Rfd1 {[%emt 0:00:00]} g5 {[%emt 0:02:04]} 20. Nd6 {[%emt 0:00:00]} Nxd6 {[%emt 0:50:17]} 21. Qxd6 {[%emt 0:00:00]} Qxd6 {[%emt 0:00:00]} 22. Rxd6 {[%emt 0:00:00]} Ne5 {[%emt 0:00:00]} 23. Nc4 {[%emt 0:00:00]} Nc6 {[%emt 0:00:00]} 24. Rcd1 {[%emt 0:00:00]} Kf8 {[%emt 0:00:00]} 25. Nb6 {[%emt 0:00:00]} Ke8 {[%emt 0:00:00]} 26. Bxc6 {[%emt 0:00:00]} bxc6 {[%emt 0:00:00]} 27. Nxc8 {[%emt 0:00:00]} Rxc8 {[%emt 0:00:00]} 28. R1d4 {[%emt 0:00:00]} Ra8 {[%emt 0:00:00]} 29. Rb4 {[%emt 0:00:00]} Kd8 {[%emt 0:00:00]} 30. Rb7 {[%emt 0:00:00]} Kc8 {[%emt 0:00:00]} 31. Rb4 {[%emt 0:00:00]} Kc7 {[%emt 0:00:00]} 1/2-1/2

[Event "FISCA Open 2022"]
[Site "Cap Aurora"]
[Date "2022.06.24"]
[Round "3.12"]
[White "Togan, Teodor-Bogdan"]
[Black "Miron, Iurii"]
[Result "1/2-1/2"]
[ECO "B82"]
[WhiteElo "1507"]
[BlackElo "1769"]
[Annotator "NA RC"]
[PlyCount "85"]
[EventDate "2022.06.22"]
[EventType "swiss"]
[EventCountry "ROU"]
[SourceTitle "playchess.com"]
[Source "ChessBase"]
[SourceQuality "1"]
[TimeControl "5400+30"]

1. e4 {[%emt 1:31:00]} c5 {[%emt 1:31:00]} 2. Nf3 {[%emt 0:00:30]} e6 {[%emt 0:00:30]} 3. d4 {[%emt 0:00:30]} cxd4 {[%emt 0:00:30]} 4. Nxd4 {[%emt 0:00:30]} Nf6 {[%emt 0:00:30]} 5. Nc3 {[%emt 0:00:30]} d6 {[%emt 0:00:30]} 6. f4 {[%emt 0:00:30]} a6 {[%emt 0:00:30]} 7. Qf3 {[%emt 0:00:30]} Qb6 {[%emt 0:00:30]} 8. Nb3 {[%emt 0:00:30]} Qc7 {[%emt 0:00:30]} 9. g4 {[%emt 0:00:30]} b5 {[%emt 0:00:30]} 10. a3 {[%emt 0:00:30]} Bb7 {[%emt 0:00:30]} 11. g5 {[%emt 0:00:30]} Nfd7 {[%emt 0:00:30]} 12. Bg2 {[%emt 0:00:30]} Nc6 {[%emt 0:00:30]} 13. Be3 b4 {[%emt 0:00:30]} 14. axb4 {[%emt 0:01:00]} Nxb4 {[%emt 0:00:30]} 15. Qf2 {[%emt 0:00:30]} Be7 {[%emt 0:00:30]} 16. h4 {[%emt 0:00:30]} a5 {[%emt 0:00:30]} 17. O-O {[%emt 0:00:30]} O-O {[%emt 0:00:30]} 18. Nd4 {[%emt 0:00:30]} Ba6 {[%emt 0:00:30]} 19. Rfd1 {[%emt 0:00:30]} Rfe8 {[%emt 0:00:30]} 20. h5 {[%emt 0:00:30]} Nf8 {[%emt 0:00:30]} 21. Nb3 {[%emt 0:00:30]} Reb8 {[%emt 0:00:30]} 22. Nxa5 {[%emt 0:00:30]} Nc6 {[%emt 0:00:30]} 23. Nxc6 {[%emt 0:00:30]} Qxc6 {[%emt 0:00:30]} 24. e5 {[%emt 0:00:30]} d5 {[%emt 0:00:30]} 25. Nxd5 {[%emt 0:00:30]} exd5 {[%emt 0:00:30]} 26. Bxd5 {[%emt 0:00:30]} Qc8 {[%emt 0:00:30]} 27. Bxa8 {[%emt 0:00:30]} Rxa8 {[%emt 0:00:30]} 28. Qg2 {[%emt 0:00:30]} Bb7 {[%emt 0:00:30]} 29. Rxa8 {[%emt 0:00:30]} Bxa8 30. Qg3 {[%emt 0:00:30]} Qxc2 {[%emt 0:01:00]} 31. Rd2 {[%emt 0:00:30]} Qb1+ {[%emt 0:00:30]} 32. Kf2 {[%emt 0:00:30]} Bb4 {[%emt 0:00:30]} 33. Re2 {[%emt 0:00:30]} Ne6 {[%emt 0:00:30]} 34. Bd2 {[%emt 0:00:30]} Bc5+ {[%emt 0:00:30]} 35. Be3 {[%emt 0:00:30]} Nd4 {[%emt 0:00:30]} 36. Rd2 {[%emt 0:00:30]} Qe4 {[%emt 0:00:30]} 37. g6 {[%emt 0:00:30]} hxg6 {[%emt 0:00:30]} 38. hxg6 {[%emt 0:00:30]} fxg6 {[%emt 0:00:30]} 39. b4 {[%emt 0:00:30]} Bb6 {[%emt 0:00:30]} 40. Qh3 {[%emt 0:00:30]} Bb7 {[%emt 0:00:30]} 41. Rxd4 {[%emt 0:00:30]} Bxd4 {[%emt 0:00:30]} 42. Qe6+ {[%emt 0:00:30]} Kh7 {[%emt 0:00:30]} 43. Qh3+ {[%emt 0:00:30]} 1/2-1/2

[Event "FISCA Open 2022"]
[Site "Cap Aurora"]
[Date "2022.06.25"]
[Round "4.2"]
[White "Petre, Nad-Titus"]
[Black "Stancu, Ovidiu-Grigore"]
[Result "1-0"]
[ECO "D10"]
[WhiteElo "2297"]
[BlackElo "1867"]
[Annotator "TA"]
[PlyCount "125"]
[EventDate "2022.06.22"]
[EventType "swiss"]
[EventCountry "ROU"]
[SourceTitle "playchess.com"]
[Source "ChessBase"]
[SourceQuality "1"]
[TimeControl "5400+30"]

{[%evp 9,125,14,62,62,58,58,73,73,73,72,146,87,88,73,73,73,72,73,73,65,82,70,163,117,135,109,136,130,133,78,112,102,106,75,147,147,155,16,153,150,170,170,196,200,197,183,183,165,201,202,246,240,239,229,232,234,297,147,151,89,92,89,89,98,153,136,136,136,137,137,179,190,217,217,292,225,366,365,331,181,292,292,292,292,292,306,527,504,450,448,504,504,504,504,461,411,485,463,1016,929,1815,1850,202,1612,2884,785,1876,1494,1402,1234,1097,1060,1903,1940,29979,29980,29971,6375]} 1. d4 {[%emt 0:00:03]} d5 {[%emt 0:00:14]} 2. Bf4 {[%emt 0:01:20]} Nf6 {[%emt 0:00:37]} 3. e3 {[%emt 0:00:25]} c6 {[%emt 0:01:13]} 4. c4 {[%emt 0:03:28]} Qb6 {[%emt 0:02:46]} 5. Qb3 {[%emt 0:03:30] [#]} Be6 $146 {[%emt 0:04:40]} (5... Na6 $11) ({Predecessor:} 5... Qxb3 6. axb3 a6 7. Nc3 Bf5 8. c5 Nbd7 9. b4 Rc8 10. h3 e6 11. Nf3 h6 12. Nd2 {0-1 (52) Tang,A (2512)-Sevian,S (2654) Chess.com INT 2021}) 6. c5 $14 {[%emt 0:00:56] D10: Slav Defence: 3 cxd5 (without early Nf3) and 3 Nc3.} Qxb3 {[%emt 0:00:23]} 7. axb3 {[%emt 0:00:07][%cal Ba2b3,Bb3b4][%mdl 32]} Nbd7 {[%emt 0:00:14]} 8. b4 {[%emt 0:05:54] White is better.} Nh5 {[%emt 0:01:59]} 9. Bc7 $1 {[%emt 0:00:24]} g6 {[%emt 0:10:15]} (9... a6 $142) 10. h3 {[%emt 0:01:54]} (10. b5 $142 $1 {[%cal Rb5c6]}) 10... a6 $16 {[%emt 0:00:30]} 11. Nf3 {[%emt 0:00:30]} Nhf6 {[%emt 0:00:30]} 12. Nbd2 {[%emt 0:00:30][%cal Bb1d2,Bd2b3,Bb3a5][%mdl 32]} Bg7 {[%emt 0:00:30]} 13. Nb3 {[%emt 0:00:30]} O-O {[%emt 0:00:30]} 14. Na5 {[%emt 0:00:30]} Rfc8 {[%emt 0:00:30]} 15. Bh2 {[%emt 0:00:30]} b5 {[%emt 0:00:30]} (15... Ra7 $1 $14) 16. cxb6 {[%emt 0:00:30]} ({Better is} 16. Ra3 $18) 16... Nxb6 {[%emt 0:00:30]} 17. Ne5 {[%emt 0:00:30]} Bd7 {[%emt 0:00:30]} 18. Rc1 {[%emt 0:00:30]} e6 {[%emt 0:00:30]} 19. Nxd7 {[%emt 0:00:30]} (19. Naxc6 Bxc6 20. Rxc6 Rxc6 21. Nxc6 Bf8 $14) (19. Be2 $142) 19... Nbxd7 {[%emt 0:00:30]} 20. Nxc6 {[%emt 0:00:30] aiming for Ne7+.} (20. Rxc6 Bf8 21. Rc5 e5 $15) 20... Bf8 {[%emt 0:00:30] Inhibits Ne7+.} 21. Rc2 {[%emt 0:00:30]} Ne4 {[%emt 0:00:30]} ({Black should try} 21... Nb6) 22. Bd3 {[%emt 0:00:30]} Nd6 {[%emt 0:00:30]} 23. b3 {[%emt 0:00:30] Prevents Nc4. White is much more active.} (23. Ke2 $16) 23... Nb5 {[%emt 0:00:30]} (23... Nb8 $1 $11 {remains equal.} 24. Nxb8 Rcxb8) 24. Ke2 {[%emt 0:00:30]} Na3 {[%emt 0:00:30]} 25. Rcc1 {[%emt 0:00:30]} f5 {[%emt 0:00:30]} 26. g4 {[%emt 0:00:30]} Nb5 {[%emt 0:00:30]} 27. Bf4 {[%emt 0:00:30]} Kf7 {[%emt 0:00:30]} 28. f3 {[%emt 0:00:30]} h6 {[%emt 0:00:30]} 29. h4 {[%emt 0:00:30]} Bg7 {[%emt 0:00:30]} 30. Rc2 {[%emt 0:00:30]} Na3 {[%emt 0:00:30]} 31. Ra2 {[%emt 0:00:30]} Rxc6 {[%emt 0:00:30]} 32. Rxa3 {[%emt 0:00:30]} Bf8 {[%emt 0:00:30]} 33. Rha1 {[%emt 0:00:30]} (33. b5 $18 {and White stays clearly on top.} Rc2+ 34. Bxc2 Bxa3 35. bxa6 (35. Bxh6 axb5 36. Ra1 b4 $16)) 33... Bxb4 {[%emt 0:00:30]} 34. Rxa6 {[%emt 0:00:30]} (34. Ra4 $142 Rb6 35. gxf5 (35. Rxa6 Rbxa6 36. Rxa6 Rxa6 $16) (35. Bxh6 a5 $16)) 34... Rcxa6 {[%emt 0:00:30]} 35. Rxa6 {[%emt 0:00:30]} ({Don't do} 35. Bxa6 Nb8 $14) 35... Rxa6 {[%emt 0:00:30]} 36. Bxa6 {[%emt 0:00:30][%mdl 4096] Endgame Hoping for gxf5. KBB-KBN} Bf8 {[%emt 0:58:23]} (36... fxg4 $142 37. fxg4 Nf6) 37. Bg3 {[%emt 1:10:40]} fxg4 {[%emt 0:00:42]} 38. fxg4 {[%emt 0:00:01]} Nf6 {[%emt 0:00:10]} 39. Kf3 {[%emt 0:00:10]} Ne4 {[%emt 0:00:07] [#]} 40. Be1 $1 {[%emt 0:00:10] Against Bb4} g5 {[%emt 0:00:43] [#]} 41. h5 {[%emt 0:00:43]} Bd6 {[%emt 0:01:36]} 42. Ba5 {[%emt 0:00:18]} Ke7 {[%emt 0:00:17]} (42... Ba3 $142 43. Bd3 Nd6) 43. Bd3 $18 {[%emt 0:00:20] A strong pair of Bishops.} Nf6 {[%emt 0:00:28]} 44. Bd2 {[%emt 0:00:30]} (44. b4 $142) 44... Nd7 {[%emt 0:01:27]} (44... Kd7 {keeps fighting.} 45. Ba5 Kc8) 45. e4 {[%emt 0:00:59]} dxe4+ {[%emt 0:02:17]} 46. Bxe4 {[%emt 0:00:02]} ({Less strong is} 46. Kxe4 Nf6+ 47. Kf3 Nd5 $16) 46... Nf6 {[%emt 0:00:51]} 47. Bc6 {[%emt 0:00:04]} e5 $2 {[%emt 0:01:03]} (47... Ba3 48. Be1 Kd6) 48. Bc3 {[%emt 0:01:54]} exd4 {[%emt 0:01:27]} 49. Bxd4 {[%emt 0:00:02]} Bb4 {[%emt 0:00:11]} 50. Bb5 {[%emt 0:00:35]} Kf7 {[%emt 0:01:17]} 51. Bc4+ {[%emt 0:00:08]} Ke7 {[%emt 0:00:14]} 52. Be5 {[%emt 0:00:29]} Ne8 {[%emt 0:01:54]} 53. Ke4 {[%emt 0:00:41]} Bd6 {[%emt 0:00:45]} (53... Nd6+ $142 54. Kd5 Ne8) 54. Bc3 {[%emt 0:00:36]} Bf4 {[%emt 0:02:21]} 55. Kf5 {[%emt 0:00:30]} Nd6+ {[%emt 0:00:11]} 56. Kg6 {[%emt 0:00:07]} Ne4 {[%emt 0:00:21]} 57. Bb4+ {[%emt 0:00:41]} (57. Bg7 $142 Nd2 58. Bxh6) 57... Kd7 {[%emt 0:00:24]} 58. Kxh6 {[%emt 0:00:40] And now Kg6 would win.} Nf6 {[%emt 0:01:35]} 59. Be2 {[%emt 0:00:17]} Nd5 {[%emt 0:00:43]} 60. Ba5 {[%emt 0:00:32]} Ne7 {[%emt 0:00:07]} 61. Bc4 {[%emt 0:00:29] White threatens Bc3 and mate.} Be3 {[%emt 0:00:54]} 62. Bc3 {[%emt 0:00:18]} Nc8 {[%emt 0:01:58]} 63. Bf6 {[%emt 0:00:19] Weighted Error Value: White=0.23 (precise) /Black=0.45} (63. Kg6 $142 Ne7+ 64. Kg7 Bf4 65. h6 Kd6 66. h7 Nd5 67. Bxd5 Kxd5 68. h8=Q) 1-0

[Event "FISCA Open 2022"]
[Site "Cap Aurora"]
[Date "2022.06.25"]
[Round "4.5"]
[White "Girmacea, Bogdan"]
[Black "Trifoi, Mihaela-Ioana"]
[Result "1-0"]
[ECO "D37"]
[WhiteElo "2133"]
[BlackElo "1949"]
[Annotator "RC"]
[PlyCount "67"]
[EventDate "2022.06.22"]
[EventType "swiss"]
[EventCountry "ROU"]
[SourceTitle "playchess.com"]
[Source "ChessBase"]
[SourceQuality "1"]
[TimeControl "5400+30"]

1. d4 {[%emt 0:00:13]} d5 {[%emt 0:00:33]} 2. Nf3 {[%emt 0:00:55]} Nf6 {[%emt 0:00:20]} 3. c4 {[%emt 0:00:11]} e6 {[%emt 0:00:07]} 4. Nc3 {[%emt 0:00:18]} Be7 {[%emt 0:09:31]} 5. Bf4 {[%emt 0:03:43]} a6 {[%emt 0:00:41]} 6. cxd5 {[%emt 0:01:30]} exd5 {[%emt 0:00:24]} 7. Qc2 {[%emt 0:02:02]} O-O {[%emt 0:00:39]} 8. e3 {[%emt 0:00:37]} c6 {[%emt 0:00:06]} 9. Bd3 {[%emt 0:00:30]} Be6 {[%emt 0:02:39]} 10. Ng5 {[%emt 0:15:44]} h6 {[%emt 0:00:07]} 11. Nxe6 {[%emt 0:00:25]} fxe6 {[%emt 0:00:06]} 12. h3 {[%emt 0:00:22]} Bd6 {[%emt 0:00:17]} 13. O-O-O {[%emt 0:07:14]} b5 {[%emt 0:05:04]} 14. Kb1 {[%emt 0:01:55]} a5 {[%emt 0:00:28]} 15. Ne2 {[%emt 0:02:11]} Qe7 {[%emt 0:02:00]} 16. Rc1 {[%emt 0:03:51]} a4 {[%emt 0:05:00]} 17. Bxd6 {[%emt 0:04:32]} Qxd6 {[%emt 1:10:58]} 18. Nf4 {[%emt 0:00:30]} b4 {[%emt 0:00:00]} 19. Qc5 {[%emt 0:02:06]} Qxc5 {[%emt 0:00:00]} 20. Rxc5 {[%emt 0:01:06]} Nfd7 {[%emt 0:00:00]} 21. Rc2 {[%emt 0:02:10]} e5 {[%emt 0:00:00]} 22. dxe5 {[%emt 0:12:04]} Nxe5 {[%emt 0:00:00]} 23. Rd2 {[%emt 0:05:37]} Nbd7 {[%emt 0:00:00]} 24. Rc1 {[%emt 0:03:40]} a3 {[%emt 0:00:00]} 25. b3 {[%emt 0:01:46]} Ra5 {[%emt 0:00:00]} 26. Ng6 {[%emt 0:06:19]} Nxg6 {[%emt 0:00:00]} 27. Bxg6 {[%emt 0:00:08]} Ne5 {[%emt 0:00:00]} 28. Bh5 {[%emt 0:01:11]} Rf6 {[%emt 0:00:00]} 29. f4 {[%emt 0:01:34]} Nd7 {[%emt 0:00:00]} 30. Bf3 {[%emt 0:03:28]} Ra7 {[%emt 0:00:00]} 31. Rd4 {[%emt 0:03:14]} Rb7 {[%emt 0:00:00]} 32. Rxd5 {[%emt 0:01:17]} Ra7 {[%emt 0:00:00]} 33. Rd3 {[%emt 0:03:05]} c5 {[%emt 0:00:00]} 34. Bg4 {[%emt 0:00:54]} 1-0